fUST/lending_fUST_20250819
["ID","MTS","AMOUNT","RATE_DAILY","PERIOD"]
[380155332,1755581435966,-480.0,0.00019178,2]
[380155334,1755581435978,-448.18439522,0.00019178,2]
[380155337,1755581435987,-480.0,0.00019178,2]
[380155338,1755581435996,-480.0,0.00019178,2]
[380155340,1755581436006,-480.0,0.00019178,2]
[380155342,1755581436015,-480.0,0.00019178,2]
[380155344,1755581436024,-480.0,0.00019178,2]
[380155346,1755581436033,-480.0,0.00019178,2]
[380155348,1755581436042,-480.0,0.00019178,2]
[380155350,1755581436051,-480.0,0.00019178,2]
[380155352,1755581436060,-480.0,0.00019178,2]
[380155354,1755581436069,-480.0,0.00019178,2]
[380155356,1755581436078,-480.0,0.00019178,2]
[380155358,1755581436088,-480.0,0.00019178,2]
[380155360,1755581436100,-312.48145895,0.00019178,2]
[380155363,1755581436112,-167.51854105,0.00019178,2]
[380155365,1755581436121,-424.86044795,0.00019178,2]
[380155490,1755581438247,-55.13955205,0.00019178,2]
[380155491,1755581438257,-480.0,0.00019178,2]
[380155492,1755581438266,-480.0,0.00019178,2]
[380155493,1755581438275,-480.0,0.00019178,2]
[380155494,1755581438401,-373.38573787,0.00019178,2]
[380155495,1755581438414,-106.61426213,0.00019178,2]
[380155496,1755581438423,-480.0,0.00019178,2]
[380155497,1755581438432,-451.79291067,0.00019178,2]
[380155498,1755581438443,-28.20708933,0.00019178,2]
[380155499,1755581438452,-480.0,0.00019178,2]
[380155500,1755581438461,-480.0,0.00019178,2]
[380155501,1755581438470,-164.47453589,0.00019178,2]
[380155502,1755581438486,-315.52546411,0.00019178,2]
[380155503,1755581438495,-480.0,0.00019178,2]
[380155504,1755581438504,-480.0,0.00019178,2]
[380155505,1755581438513,-480.0,0.00019178,2]
[380155506,1755581438522,-480.0,0.00019178,2]
[380155507,1755581438532,-480.0,0.00019178,2]
[380155508,1755581438541,-480.0,0.00019178,2]
[380155509,1755581438550,-480.0,0.00019178,2]
[380155510,1755581438559,-394.5224842,0.00019178,2]
[380155511,1755581438571,-159.6675158,0.00019178,2]
[380155512,1755581438580,-362.90011587,0.00019178,2]
[380155513,1755581438589,-48.25507034,0.00019178,2]
[380155514,1755581438600,-431.74492966,0.00019178,2]
[380155515,1755581438609,-480.0,0.00019178,2]
[380155516,1755581438618,-360.0,0.00019178,2]
[380155517,1755581438628,-480.0,0.00019178,2]
[380155518,1755581438637,-207.85937601,0.00019178,2]
[380155519,1755581438647,-480.0,0.00019178,2]
[380155520,1755581438656,-480.0,0.00019178,2]
[380155521,1755581438665,-204.50171494,0.00019178,2]
[380155522,1755581438674,-480.0,0.00019178,2]
[380155523,1755581438683,-526.45477924,0.00019178,2]
[380155524,1755581438693,-480.0,0.00019178,2]
[380155525,1755581438703,-480.0,0.00019178,2]
[380155526,1755581438712,-480.0,0.00019178,2]
[380155527,1755581438722,-593.14,0.00019178,2]
[380155528,1755581438731,-480.0,0.00019178,2]
[380155529,1755581438740,-480.0,0.00019178,2]
[380155530,1755581438749,-480.0,0.00019178,2]
[380155531,1755581438758,-480.0,0.00019178,2]
[380155532,1755581438767,-479.80499947,0.00019178,2]
[380155533,1755581438775,-480.0,0.00019178,2]
[380155534,1755581438785,-480.0,0.00019178,2]
[380155535,1755581438794,-480.0,0.00019178,2]
[380155536,1755581438803,-480.0,0.00019178,2]
[380155537,1755581438812,-480.0,0.00019178,2]
[380155538,1755581438821,-2664.82,0.00019178,2]
[380155539,1755581438830,-480.0,0.00019178,2]
[380155540,1755581438839,-480.0,0.00019178,2]
[380155541,1755581438849,-480.0,0.00019178,2]
[380155542,1755581438858,-480.0,0.00019178,2]
[380155543,1755581438868,-480.0,0.00019178,2]
[380155544,1755581438877,-480.0,0.00019178,2]
[380155545,1755581438886,-480.0,0.00019178,2]
[380155546,1755581438896,-480.0,0.00019178,2]
[380155547,1755581438906,-480.0,0.00019178,2]
[380155548,1755581438916,-480.0,0.00019178,2]
[380155549,1755581438926,-480.0,0.00019178,2]
[380155550,1755581438935,-480.0,0.00019178,2]
[380155551,1755581438945,-480.0,0.00019178,2]
[380155552,1755581438954,-745.81,0.00019178,2]
[380155553,1755581438964,-480.0,0.00019178,2]
[380155554,1755581438973,-480.0,0.00019178,2]
[380155555,1755581438982,-480.0,0.00019178,2]
[380155556,1755581438991,-480.0,0.00019178,2]
[380155557,1755581439000,-480.0,0.00019178,2]
[380155558,1755581439009,-363.18077187,0.00019178,2]
[380155559,1755581439018,-480.0,0.00019178,2]
[380155560,1755581439027,-480.0,0.00019178,2]
[380155561,1755581439036,-480.0,0.00019178,2]
[380155562,1755581439046,-539.45,0.00019178,2]
[380155563,1755581439055,-480.0,0.00019178,2]
[380155564,1755581439064,-480.0,0.00019178,2]
[380155565,1755581439073,-480.0,0.00019178,2]
[380155566,1755581439083,-833.85,0.00019178,2]
[380155567,1755581439093,-480.0,0.00019178,2]
[380155568,1755581439105,-480.0,0.00019178,2]
[380155569,1755581439115,-480.0,0.00019178,2]
[380155570,1755581439124,-480.0,0.00019178,2]
[380155571,1755581439133,-404.87800981,0.00019178,2]
[380155572,1755581439145,-480.0,0.00019178,2]
[380155573,1755581439154,-489.23,0.00019178,2]
[380155574,1755581439163,-480.0,0.00019178,2]
[380155575,1755581439173,-480.0,0.00019178,2]
[380155576,1755581439183,-480.0,0.00019178,2]
[380155577,1755581439193,-480.0,0.00019178,2]
[380155578,1755581439202,-480.0,0.00019178,2]
[380155579,1755581439211,-385.06353596,0.00019178,2]
[380155580,1755581439220,-480.0,0.00019178,2]
[380155581,1755581439230,-480.0,0.00019178,2]
[380155582,1755581439239,-481.56245632,0.00019178,2]
[380155583,1755581439248,-480.01,0.00019178,2]
[380155584,1755581439258,-399.99497608,0.00019178,2]
[380155585,1755581439268,-581.42177868,0.00019178,2]
[380155586,1755581439277,-480.0,0.00019178,2]
[380155587,1755581439286,-480.0,0.00019178,2]
[380155588,1755581439295,-480.0,0.00019178,2]
[380155589,1755581439304,-480.0,0.00019178,2]
[380155590,1755581439313,-1624.97,0.00019178,2]
[380155591,1755581439323,-460.0,0.00019178,2]
[380155592,1755581439332,-480.0,0.00019178,2]
[380155593,1755581439341,-480.0,0.00019178,2]
[380155594,1755581439351,-390.26746381,0.00019178,2]
[380155595,1755581439360,-480.0,0.00019178,2]
[380155596,1755581439369,-538.45,0.00019178,2]
[380155597,1755581439378,-480.0,0.00019178,2]
[380155598,1755581439388,-480.0,0.00019178,2]
[380155599,1755581439397,-480.0,0.00019178,2]
[380155600,1755581439407,-1520.77,0.00019178,2]
[380155601,1755581439416,-480.0,0.00019178,2]
[380155602,1755581439425,-480.0,0.00019178,2]
[380155603,1755581439434,-480.0,0.00019178,2]
[380155604,1755581439443,-480.0,0.00019178,2]
[380155605,1755581439453,-480.0,0.00019178,2]
[380155606,1755581439462,-460.0,0.00019178,2]
[380155607,1755581439472,-480.0,0.00019178,2]
[380155608,1755581439481,-480.0,0.00019178,2]
[380155609,1755581439490,-480.0,0.00019178,2]
[380155610,1755581439499,-480.0,0.00019178,2]
[380155611,1755581439508,-480.0,0.00019178,2]
[380155612,1755581439518,-829.27,0.00019178,2]
[380155613,1755581439527,-480.0,0.00019178,2]
[380155614,1755581439536,-480.0,0.00019178,2]
[380155615,1755581439546,-666.3,0.00019178,2]
[380155616,1755581439554,-480.0,0.00019178,2]
[380155617,1755581439564,-480.0,0.00019178,2]
[380155618,1755581439573,-480.0,0.00019178,2]
[380155619,1755581439582,-480.0,0.00019178,2]
[380155620,1755581439592,-480.0,0.00019178,2]
[380155621,1755581439601,-500.0,0.00019178,2]
[380155622,1755581439611,-500.0,0.00019178,2]
[380155623,1755581439621,-205.92666435,0.00019178,2]
[380155624,1755581439631,-480.0,0.00019178,2]
[380155625,1755581439640,-480.0,0.00019178,2]
[380155626,1755581439650,-480.0,0.00019178,2]
[380155627,1755581439659,-480.0,0.00019178,2]
[380155628,1755581439669,-460.0,0.00019178,2]
[380155629,1755581439679,-480.0,0.00019178,2]
[380155631,1755581439689,-3434.93,0.00019178,2]
[380155632,1755581439698,-460.0,0.00019178,2]
[380155633,1755581439708,-480.0,0.00019178,2]
[380155634,1755581439717,-480.0,0.00019178,2]
[380155636,1755581439728,-480.0,0.00019178,2]
[380155637,1755581439738,-480.0,0.00019178,2]
[380155638,1755581439747,-480.0,0.00019178,2]
[380155640,1755581439756,-480.0,0.00019178,2]
[380155642,1755581439766,-480.0,0.00019178,2]
[380155644,1755581439776,-367.75653201,0.00019178,2]
[380155646,1755581439786,-380.0,0.00019178,2]
[380155648,1755581439795,-480.0,0.00019178,2]
[380155650,1755581439805,-480.0,0.00019178,2]
[380155652,1755581439814,-480.0,0.00019178,2]
[380155654,1755581439824,-480.0,0.00019178,2]
[380155656,1755581439834,-380.0,0.00019178,2]
[380155658,1755581439844,-460.0,0.00019178,2]
[380155660,1755581439853,-480.0,0.00019178,2]
[380155662,1755581439865,-480.0,0.00019178,2]
[380155664,1755581439875,-628.41,0.00019178,2]
[380155666,1755581439885,-480.0,0.00019178,2]
[380155668,1755581439895,-1015.84,0.00019178,2]
[380155670,1755581439907,-480.0,0.00019178,2]
[380155672,1755581439920,-480.0,0.00019178,2]
[380155675,1755581439929,-480.0,0.00019178,2]
[380155678,1755581439937,-1370.66,0.00019178,2]
[380155680,1755581439946,-1147.67,0.00019178,2]
[380155682,1755581439956,-1210.23,0.00019178,2]
[380155684,1755581439965,-480.0,0.00019178,2]
[380155686,1755581439974,-625.47,0.00019178,2]
[380155688,1755581439983,-480.0,0.00019178,2]
[380155690,1755581439992,-380.0,0.00019178,2]
[380155692,1755581440001,-480.0,0.00019178,2]
[380155694,1755581440010,-480.0,0.00019178,2]
[380155695,1755581440019,-480.0,0.00019178,2]
[380155697,1755581440028,-480.0,0.00019178,2]
[380155699,1755581440038,-629.81,0.00019178,2]
[380155701,1755581440047,-1220.13,0.00019178,2]
[380155703,1755581440057,-480.0,0.00019178,2]
[380155705,1755581440067,-948.03,0.00019178,2]
[380155708,1755581440079,-480.0,0.00019178,2]
[380155710,1755581440089,-3872.5,0.00019178,2]
[380155711,1755581440103,-480.0,0.00019178,2]
[380155713,1755581440112,-480.0,0.00019178,2]
[380155715,1755581440121,-271.02637021,0.00019178,2]
[380155717,1755581440130,-360.0,0.00019178,2]
[380155719,1755581440141,-480.0,0.00019178,2]
[380155721,1755581440150,-480.0,0.00019178,2]
[380155723,1755581440159,-1790.51,0.00019178,2]
[380155725,1755581440168,-480.0,0.00019178,2]
[380155727,1755581440178,-360.0,0.00019178,2]
[380155729,1755581440188,-480.0,0.00019178,2]
[380155731,1755581440197,-480.0,0.00019178,2]
[380155733,1755581440206,-562.38,0.00019178,2]
[380155735,1755581440216,-480.0,0.00019178,2]
[380155737,1755581440225,-1943.56,0.00019178,2]
[380155739,1755581440235,-301.40638054,0.00019178,2]
[380155741,1755581440244,-480.0,0.00019178,2]
[380155743,1755581440253,-480.0,0.00019178,2]
[380155745,1755581440263,-598.77,0.00019178,2]
[380155747,1755581440272,-480.0,0.00019178,2]
[380155749,1755581440282,-480.0,0.00019178,2]
[380155751,1755581440291,-599.65,0.00019178,2]
[380155753,1755581440300,-480.0,0.00019178,2]
[380155755,1755581440309,-362.91670651,0.00019178,2]
[380155757,1755581440318,-480.0,0.00019178,2]
[380155759,1755581440327,-480.0,0.00019178,2]
[380155761,1755581440336,-480.0,0.00019178,2]
[380155763,1755581440345,-404.08609851,0.00019178,2]
[380155765,1755581440354,-466.47007139,0.00019178,2]
[380155767,1755581440363,-480.0,0.00019178,2]
[380155769,1755581440372,-4276.18,0.00019178,2]
[380155770,1755581440382,-480.0,0.00019178,2]
[380155772,1755581440391,-480.0,0.00019178,2]
[380155774,1755581440400,-480.0,0.00019178,2]
[380155775,1755581440410,-480.0,0.00019178,2]
[380155776,1755581440419,-480.0,0.00019178,2]
[380155777,1755581440429,-1285.0,0.00019178,2]
[380155778,1755581440438,-480.0,0.00019178,2]
[380155779,1755581440447,-480.0,0.00019178,2]
[380155780,1755581440456,-702.37,0.00019178,2]
[380155781,1755581440465,-427.73975666,0.00019178,2]
[380155782,1755581440475,-480.0,0.00019178,2]
[380155783,1755581440484,-480.0,0.00019178,2]
[380155784,1755581440493,-360.0,0.00019178,2]
[380155785,1755581440502,-539.61,0.00019178,2]
[380155786,1755581440511,-751.89,0.00019178,2]
[380155787,1755581440519,-580.63,0.00019178,2]
[380155789,1755581440529,-360.0,0.00019178,2]
[380155791,1755581440538,-480.0,0.00019178,2]
[380155794,1755581440547,-480.0,0.00019178,2]
[380155796,1755581440557,-480.0,0.00019178,2]
[380155798,1755581440566,-1673.11,0.00019178,2]
[380155800,1755581440575,-650.07,0.00019178,2]
[380155802,1755581440584,-480.0,0.00019178,2]
[380155805,1755581440594,-480.0,0.00019178,2]
[380155806,1755581440603,-480.0,0.00019178,2]
[380155818,1755581440702,-480.0,0.00019178,2]
[380155820,1755581440711,-1524.95,0.00019178,2]
[380155822,1755581440722,-480.0,0.00019178,2]
[380155824,1755581440732,-480.0,0.00019178,2]
[380155826,1755581440740,-480.0,0.00019178,2]
[380155828,1755581440749,-480.0,0.00019178,2]
[380155830,1755581440758,-480.0,0.00019178,2]
[380155832,1755581440768,-480.0,0.00019178,2]
[380155834,1755581440778,-715.78,0.00019178,2]
[380155836,1755581440788,-480.0,0.00019178,2]
[380155838,1755581440797,-480.0,0.00019178,2]
[380155840,1755581440806,-491.76,0.00019178,2]
[380155842,1755581440816,-480.0,0.00019178,2]
[380155844,1755581440825,-5083.47,0.00019178,2]
[380155846,1755581440835,-480.0,0.00019178,2]
[380155848,1755581440844,-360.0,0.00019178,2]
[380155850,1755581440853,-480.0,0.00019178,2]
[380155852,1755581440862,-560.41,0.00019178,2]
[380155854,1755581440871,-480.0,0.00019178,2]
[380155856,1755581440880,-480.0,0.00019178,2]
[380155858,1755581440890,-480.0,0.00019178,2]
[380155860,1755581440899,-480.0,0.00019178,2]
[380155862,1755581440908,-755.95,0.00019178,2]
[380155864,1755581440917,-480.0,0.00019178,2]
[380155866,1755581440926,-437.35334718,0.00019178,2]
[380155868,1755581440935,-480.0,0.00019178,2]
[380155870,1755581440944,-480.0,0.00019178,2]
[380155872,1755581440954,-502.05,0.00019178,2]
[380155874,1755581440963,-480.0,0.00019178,2]
[380155876,1755581440972,-480.0,0.00019178,2]
[380155878,1755581440982,-480.0,0.00019178,2]
[380155880,1755581440992,-527.23815708,0.00019178,2]
[380155882,1755581441001,-480.0,0.00019178,2]
[380155884,1755581441010,-480.0,0.00019178,2]
[380155886,1755581441019,-480.0,0.00019178,2]
[380155888,1755581441028,-480.0,0.00019178,2]
[380155890,1755581441037,-480.0,0.00019178,2]
[380155892,1755581441047,-386.77830855,0.00019178,2]
[380155895,1755581441056,-480.0,0.00019178,2]
[380155897,1755581441065,-480.0,0.00019178,2]
[380155899,1755581441074,-480.0,0.00019178,2]
[380155901,1755581441083,-480.0,0.00019178,2]
[380155903,1755581441094,-480.0,0.00019178,2]
[380155905,1755581441107,-480.0,0.00019178,2]
[380155907,1755581441116,-1264.74,0.00019178,2]
[380155908,1755581441125,-500.0,0.00019178,2]
[380155910,1755581441135,-5000.0,0.00019178,2]
[380155912,1755581441145,-5000.0,0.00019178,2]
[380155914,1755581441154,-666.0,0.00019178,2]
[380155917,1755581441164,-152.13285498,0.00019338,2]
[380155919,1755581441174,-10558.8057456,0.00019338,2]
[380155921,1755581441184,-193.92001916,0.00019352,2]
[380155923,1755581441194,-5440.67951038,0.00019352,2]
[380155925,1755581441203,-1000.0,0.00019352,2]
[380155926,1755581441212,-4560.89664306,0.00019439,2]
[380155928,1755581441222,-480.0,0.00019452,2]
[380155930,1755581441232,-480.0,0.00019452,2]
[380155932,1755581441241,-480.0,0.00019452,2]
[380155935,1755581441251,-480.0,0.00019452,2]
[380155937,1755581441262,-480.0,0.00019452,2]
[380155939,1755581441272,-480.0,0.00019452,2]
[380155941,1755581441281,-480.0,0.00019452,2]
[380155942,1755581441291,-480.0,0.00019452,2]
[380155944,1755581441300,-480.0,0.00019452,2]
[380155947,1755581441310,-480.0,0.00019452,2]
[380155949,1755581441320,-480.0,0.00019452,2]
[380155950,1755581441331,-480.0,0.00019452,2]
[380155952,1755581441341,-480.0,0.00019452,2]
[380155954,1755581441350,-480.0,0.00019452,2]
[380155956,1755581441359,-480.0,0.00019452,2]
[380155958,1755581441368,-480.0,0.00019452,2]
[380155960,1755581441377,-480.0,0.00019452,2]
[380155962,1755581441386,-480.0,0.00019452,2]
[380155964,1755581441397,-554.19,0.00019452,2]
[380155966,1755581441406,-480.0,0.00019452,2]
[380155968,1755581441415,-241.06480358,0.00019452,2]
[380155970,1755581441424,-593.14,0.00019452,2]
[380155972,1755581441434,-480.0,0.00019452,2]
[380155974,1755581441443,-2664.82,0.00019452,2]
[380155976,1755581441452,-480.0,0.00019452,2]
[380155978,1755581441461,-480.0,0.00019452,2]
[380155980,1755581441471,-480.0,0.00019452,2]
[380155982,1755581441480,-480.0,0.00019452,2]
[380155984,1755581441489,-480.0,0.00019452,2]
[380155986,1755581441499,-745.81,0.00019452,2]
[380155988,1755581441508,-582.26801741,0.00019452,2]
[380155990,1755581441517,-480.0,0.00019452,2]
[380155992,1755581441527,-480.0,0.00019452,2]
[380155994,1755581441536,-539.45,0.00019452,2]
[380155996,1755581441546,-480.0,0.00019452,2]
[380155998,1755581441555,-833.85,0.00019452,2]
[380156000,1755581441564,-480.0,0.00019452,2]
[380156002,1755581441573,-480.0,0.00019452,2]
[380156004,1755581441583,-480.0,0.00019452,2]
[380156006,1755581441592,-480.0,0.00019452,2]
[380156008,1755581441601,-489.23,0.00019452,2]
[380156010,1755581441611,-480.0,0.00019452,2]
[380156012,1755581441620,-480.0,0.00019452,2]
[380156014,1755581441630,-480.0,0.00019452,2]
[380156016,1755581441639,-480.01,0.00019452,2]
[380156018,1755581441648,-480.0,0.00019452,2]
[380156020,1755581441657,-480.0,0.00019452,2]
[380156022,1755581441667,-1624.97,0.00019452,2]
[380156024,1755581441676,-480.0,0.00019452,2]
[380156026,1755581441685,-538.45,0.00019452,2]
[380156028,1755581441694,-480.0,0.00019452,2]
[380156030,1755581441703,-1520.77,0.00019452,2]
[380156032,1755581441713,-480.0,0.00019452,2]
[380156034,1755581441722,-480.0,0.00019452,2]
[380156036,1755581441732,-480.0,0.00019452,2]
[380156038,1755581441741,-335.6929231,0.00019452,2]
[380156040,1755581441750,-480.0,0.00019452,2]
[380156042,1755581441759,-829.27,0.00019452,2]
[380156044,1755581441768,-480.0,0.00019452,2]
[380156046,1755581441777,-666.3,0.00019452,2]
[380156048,1755581441786,-480.0,0.00019452,2]
[380156050,1755581441796,-480.0,0.00019452,2]
[380156052,1755581441805,-480.0,0.00019452,2]
[380156054,1755581441814,-480.0,0.00019452,2]
[380156056,1755581441824,-480.0,0.00019452,2]
[380156057,1755581441834,-480.0,0.00019452,2]
[380156059,1755581441843,-3434.93,0.00019452,2]
[380156061,1755581441852,-460.0,0.00019452,2]
[380156063,1755581441862,-480.0,0.00019452,2]
[380156065,1755581441872,-480.0,0.00019452,2]
[380156067,1755581441882,-480.0,0.00019452,2]
[380156068,1755581441892,-593.70504585,0.00019452,2]
[380156070,1755581441902,-480.0,0.00019452,2]
[380156072,1755581441912,-282.67960988,0.00019452,2]
[380156074,1755581441923,-628.41,0.00019452,2]
[380156076,1755581441932,-1015.84,0.00019452,2]
[380156078,1755581441941,-480.0,0.00019452,2]
[380156081,1755581441951,-480.0,0.00019452,2]
[380156082,1755581441962,-232.47184268,0.00019452,2]
[380156092,1755581442049,-1054.27298042,0.00019452,2]
[380156094,1755581442060,-83.9151769,0.00019452,2]
[380156096,1755581442070,-1147.67,0.00019452,2]
[380156098,1755581442079,-1210.23,0.00019452,2]
[380156100,1755581442089,-625.47,0.00019452,2]
[380156102,1755581442099,-480.0,0.00019452,2]
[380156104,1755581442108,-211.80864667,0.00019452,2]
[380156106,1755581442118,-480.0,0.00019452,2]
[380156108,1755581442127,-629.81,0.00019452,2]
[380156110,1755581442136,-1220.13,0.00019452,2]
[380156112,1755581442147,-480.0,0.00019452,2]
[380156114,1755581442157,-948.03,0.00019452,2]
[380156116,1755581442167,-3872.5,0.00019452,2]
[380156118,1755581442177,-480.0,0.00019452,2]
[380156120,1755581442187,-480.0,0.00019452,2]
[380156122,1755581442196,-480.0,0.00019452,2]
[380156124,1755581442205,-1790.51,0.00019452,2]
[380156126,1755581442215,-480.0,0.00019452,2]
[380156128,1755581442224,-480.0,0.00019452,2]
[380156130,1755581442236,-562.38,0.00019452,2]
[380156132,1755581442246,-480.0,0.00019452,2]
[380156133,1755581442256,-1943.56,0.00019452,2]
[380156134,1755581442266,-208.18572567,0.00019452,2]
[380156136,1755581442275,-598.77,0.00019452,2]
[380156137,1755581442285,-480.0,0.00019452,2]
[380156138,1755581442294,-480.0,0.00019452,2]
[380156140,1755581442303,-599.65,0.00019452,2]
[380156142,1755581442313,-480.0,0.00019452,2]
[380156144,1755581442322,-480.0,0.00019452,2]
[380156146,1755581442332,-480.0,0.00019452,2]
[380156147,1755581442342,-480.0,0.00019452,2]
[380156148,1755581442351,-4276.18,0.00019452,2]
[380156149,1755581442360,-480.0,0.00019452,2]
[380156150,1755581442370,-347.61278828,0.00019452,2]
[380156151,1755581442379,-1285.0,0.00019452,2]
[380156152,1755581442389,-480.0,0.00019452,2]
[380156153,1755581442398,-480.0,0.00019452,2]
[380156154,1755581442408,-702.37,0.00019452,2]
[380156155,1755581442417,-539.61,0.00019452,2]
[380156156,1755581442427,-751.89,0.00019452,2]
[380156157,1755581442437,-580.63,0.00019452,2]
[380156158,1755581442447,-480.0,0.00019452,2]
[380156159,1755581442456,-480.0,0.00019452,2]
[380156160,1755581442465,-650.07,0.00019452,2]
[380156161,1755581442474,-1673.11,0.00019452,2]
[380156162,1755581442484,-480.0,0.00019452,2]
[380156163,1755581442493,-480.0,0.00019452,2]
[380156164,1755581442502,-480.0,0.00019452,2]
[380156165,1755581442512,-480.0,0.00019452,2]
[380156166,1755581442521,-1524.95,0.00019452,2]
[380156167,1755581442530,-480.0,0.00019452,2]
[380156168,1755581442539,-480.0,0.00019452,2]
[380156169,1755581442548,-360.0,0.00019452,2]
[380156170,1755581442558,-715.78,0.00019452,2]
[380156171,1755581442567,-480.0,0.00019452,2]
[380156172,1755581442576,-478.1360741,0.00019452,2]
[380156173,1755581442605,-13.6239259,0.00019452,2]
[380156174,1755581442614,-480.0,0.00019452,2]
[380156175,1755581442623,-5083.47,0.00019452,2]
[380156176,1755581442632,-480.0,0.00019452,2]
[380156177,1755581442642,-560.41,0.00019452,2]
[380156178,1755581442651,-480.0,0.00019452,2]
[380156179,1755581442660,-480.0,0.00019452,2]
[380156180,1755581442670,-755.95,0.00019452,2]
[380156181,1755581442679,-480.0,0.00019452,2]
[380156182,1755581442689,-502.05,0.00019452,2]
[380156183,1755581442698,-480.0,0.00019452,2]
[380156184,1755581442707,-480.0,0.00019452,2]
[380156185,1755581442717,-480.0,0.00019452,2]
[380156186,1755581442726,-493.81495283,0.00019452,2]
[380156187,1755581442735,-480.0,0.00019452,2]
[380156188,1755581442744,-480.0,0.00019452,2]
[380156189,1755581442841,-158.85596245,0.00019452,2]
[380156190,1755581442852,-480.0,0.00019452,2]
[380156191,1755581442861,-480.0,0.00019452,2]
[380156192,1755581442871,-480.0,0.00019452,2]
[380156193,1755581442880,-1264.74,0.00019452,2]
[380156194,1755581442889,-500.0,0.00019452,2]
[380156195,1755581442899,-160.0,0.00019547,3]
[380156196,1755581442908,-200.0,0.00019561,20]
[380156197,1755581442917,-200.0,0.00019561,20]
[380156198,1755581442927,-200.0,0.00019561,20]
[380156199,1755581442936,-200.0,0.00019561,20]
[380156200,1755581442945,-200.0,0.00019561,20]
[380156201,1755581442954,-200.0,0.00019561,20]
[380156202,1755581442963,-200.0,0.00019561,20]
[380156203,1755581442973,-200.0,0.00019561,20]
[380156204,1755581442983,-200.0,0.00019561,20]
[380156205,1755581442992,-200.0,0.00019561,20]
[380156206,1755581443002,-200.0,0.00019561,20]
[380156207,1755581443011,-200.0,0.00019561,20]
[380156208,1755581443020,-200.0,0.00019561,20]
[380156209,1755581443029,-200.0,0.00019561,20]
[380156210,1755581443039,-200.0,0.00019561,20]
[380156211,1755581443048,-200.0,0.00019561,20]
[380156212,1755581443058,-200.0,0.00019561,20]
[380156213,1755581443067,-200.0,0.00019561,20]
[380156214,1755581443076,-200.0,0.00019561,20]
[380156215,1755581443086,-200.0,0.00019561,20]
[380156216,1755581443097,-600.0,0.00019561,20]
[380156217,1755581443107,-151.0,0.000196,2]
[380156218,1755581443116,-193.92001916,0.00019626,2]
[380156219,1755581443126,-153.0,0.00019699,2]
[380156220,1755581443135,-153.0,0.00019699,2]
[380156221,1755581443146,-306.0,0.00019699,2]
[380156222,1755581443155,-1000.0,0.00019721,2]
[380156223,1755581443164,-480.0,0.00019726,2]
[380156224,1755581443175,-480.0,0.00019726,2]
[380156225,1755581443184,-480.0,0.00019726,2]
[380156226,1755581443194,-399.93584607,0.00019726,2]
[380156227,1755581443203,-460.0,0.00019726,2]
[380156228,1755581443214,-480.0,0.00019726,2]